fUST/lending_fUST_20250701
["ID","MTS","AMOUNT","RATE_DAILY","PERIOD"]
[368697776,1751307035503,-153.32,0.00020055,2]
[368697777,1751307035513,-460.0,0.00020055,2]
[368697778,1751307035523,-460.0,0.00020055,2]
[368697779,1751307035533,-460.0,0.00020055,2]
[368697780,1751307035542,-645.07,0.00020055,2]
[368697781,1751307035553,-460.0,0.00020055,2]
[368697782,1751307035563,-460.0,0.00020057,2]
[368697783,1751307035572,-264.34745531,0.00020057,2]
[368697784,1751307035581,-460.0,0.00020057,2]
[368697785,1751307035590,-592.51,0.00020057,2]
[368697786,1751307035599,-460.0,0.00020057,2]
[368697787,1751307035609,-470.5,0.00020057,2]
[368697788,1751307035618,-947.77,0.00020057,2]
[368697789,1751307035627,-460.0,0.00020057,2]
[368697790,1751307035636,-460.0,0.00020057,2]
[368697791,1751307035645,-169.98,0.00020057,2]
[368697792,1751307035655,-460.0,0.00020057,2]
[368697793,1751307035664,-390.76,0.00020057,2]
[368697794,1751307035674,-460.0,0.00020057,2]
[368697795,1751307035683,-460.0,0.00020057,2]
[368697796,1751307035694,-346.78,0.00020057,2]
[368697797,1751307035704,-162.9,0.00020057,2]
[368697798,1751307035713,-460.0,0.00020057,2]
[368697799,1751307035722,-460.0,0.00020057,2]
[368697800,1751307035731,-570.98,0.00020057,2]
[368697801,1751307035740,-647.6,0.00020057,2]
[368697802,1751307035749,-460.0,0.00020057,2]
[368697803,1751307035758,-366.06,0.00020057,2]
[368697804,1751307035767,-2506.12676627,0.00020079,2]
[368697805,1751307035776,-151.0,0.00020079,2]
[368697806,1751307035785,-1898.27972959,0.000201,2]
[368697807,1751307035795,-13943.75306696,0.000201,2]
[368697808,1751307035810,-1085.54040766,0.000201,2]
[368697809,1751307035822,-1920.88598458,0.000201,2]
[368697810,1751307035831,-297.83365257,0.00020107,2]
[368697811,1751307035841,-1636.41,0.0002017,2]
[368697812,1751307035850,-500.0,0.0002017,2]
[368697813,1751307035860,-487.1023781,0.00020173,2]
[368697814,1751307035869,-500.0,0.00020173,2]
[368697815,1751307035879,-500.0,0.00020173,2]
[368697816,1751307035888,-500.0,0.00020173,2]
[368697817,1751307035897,-500.0,0.00020173,2]
[368697818,1751307035907,-500.0,0.00020173,2]
[368697819,1751307035917,-500.0,0.00020173,2]
[368697820,1751307035926,-500.0,0.00020173,2]
[368697821,1751307035935,-500.0,0.00020173,2]
[368697822,1751307035945,-500.0,0.00020173,2]
[368697823,1751307035954,-500.0,0.00020173,2]
[368697824,1751307035963,-500.0,0.00020173,2]
[368697825,1751307035973,-476.26006367,0.00020173,2]
[368697826,1751307035982,-508.82170255,0.00020173,2]
[368697827,1751307035991,-158.683403,0.00020187,2]
[368697828,1751307036000,-1636.41,0.00020198,2]
[368697829,1751307036010,-500.0,0.00020198,2]
[368697830,1751307036019,-1636.41,0.00020199,2]
[368697831,1751307036028,-1636.41,0.00020199,2]
[368697832,1751307036038,-1636.41,0.00020199,2]
[368697833,1751307036047,-1636.41,0.00020199,2]
[368697834,1751307036058,-1636.41,0.00020199,2]
[368697835,1751307036069,-1636.41,0.00020199,2]
[368697836,1751307036078,-1636.41,0.00020199,2]
[368697837,1751307036087,-1636.41,0.00020199,2]
[368697838,1751307036097,-1636.41,0.00020199,2]
[368697839,1751307036106,-1636.41,0.00020199,2]
[368697840,1751307036116,-1636.41,0.00020199,2]
[368697841,1751307036125,-1636.41,0.00020199,2]
[368697842,1751307036135,-1636.41,0.00020199,2]
[368697843,1751307036145,-1636.41,0.00020199,2]
[368697844,1751307036156,-1636.41,0.00020199,2]
[368697845,1751307036165,-1636.41,0.00020199,2]
[368697846,1751307036174,-1636.61474586,0.00020199,2]
[368697847,1751307036184,-460.0,0.00020199,2]
[368697848,1751307036194,-460.0,0.00020199,2]
[368697849,1751307036204,-500.0,0.00020199,2]
[368697850,1751307036309,-500.0,0.00020199,2]
[368697851,1751307036319,-500.0,0.00020199,2]
[368697852,1751307036328,-500.0,0.00020199,2]
[368697853,1751307036338,-500.0,0.00020199,2]
[368697854,1751307036347,-500.0,0.00020199,2]
[368697855,1751307036357,-500.0,0.00020199,2]
[368697856,1751307036366,-500.0,0.00020199,2]
[368697857,1751307036375,-500.0,0.00020199,2]
[368697858,1751307036385,-500.0,0.00020199,2]
[368697859,1751307036394,-500.0,0.00020199,2]
[368697860,1751307036406,-632.37419625,0.00020199,2]
[368697861,1751307036415,-460.0,0.00020199,2]
[368697862,1751307036425,-460.0,0.00020199,2]
[368697863,1751307036434,-460.0,0.00020199,2]
[368697864,1751307036443,-460.0,0.00020199,2]
[368697865,1751307036453,-460.0,0.00020199,2]
[368697866,1751307036462,-460.0,0.00020199,2]
[368697867,1751307036472,-460.0,0.00020199,2]
[368697868,1751307036482,-38963.9142371,0.000202,2]
[368697869,1751307036491,-15191.48778614,0.000202,2]
[368697870,1751307036501,-36690.47299703,0.000202,2]
[368697871,1751307036511,-344061.89268142,0.000202,2]
[368697872,1751307036524,-4637.34604728,0.000202,2]
[368697873,1751307036535,-5060.59374388,0.000202,2]
[368697884,1751307037903,-460.0,0.00019235,2]
[368697885,1751307037913,-460.0,0.00019235,2]
[368697886,1751307037923,-460.0,0.00019235,2]
[368697887,1751307037932,-459.59115232,0.00019509,2]
[368697888,1751307037945,-0.40884768,0.00019509,2]
[368697889,1751307037954,-461.18920472,0.00019509,2]
[368697890,1751307037964,-460.0,0.00019783,2]
[368697891,1751307037974,-460.0,0.00019997,2]
[368697892,1751307037983,-179.29,0.00020189,3]
[368697893,1751307037993,-5794.41838695,0.000202,2]
[368697894,1751307038005,-10445.74914047,0.000202,2]
[368697895,1751307038015,-225.494757,0.000202,2]
[368697896,1751307038025,-151.0,0.000202,2]
[368697897,1751307038035,-151.0,0.000202,2]
[368697898,1751307038044,-151.0,0.000202,2]
[368697899,1751307038055,-151.0,0.000202,2]
[368697900,1751307038064,-151.0,0.000202,2]
[368697901,1751307038074,-151.0,0.000202,2]
[368697903,1751307038084,-151.0,0.000202,2]
[368697904,1751307038093,-151.942088,0.000202,2]
[368697905,1751307038102,-151.0,0.000202,2]
[368697906,1751307038112,-153.76584,0.000202,2]
[368697907,1751307038121,-212.97405787,0.00020215,2]
[368697908,1751307038131,-460.0,0.00020271,2]
[368697909,1751307038140,-339.96148503,0.00020271,2]
[368697910,1751307038154,-120.03851497,0.00020271,2]
[368697911,1751307038163,-534.2,0.00020271,2]
[368697912,1751307038172,-614.67,0.00020271,2]
[368697913,1751307038182,-492.89864259,0.00020271,2]
[368697914,1751307038191,-460.93343155,0.00020271,2]
[368697915,1751307038200,-163.11,0.00020271,2]
[368697916,1751307038209,-282.39,0.00020271,2]
[368697917,1751307038220,-96.94551344,0.00020271,2]
[368697918,1751307038232,-363.05448656,0.00020271,2]
[368697919,1751307038242,-460.18,0.00020271,2]
[368697920,1751307038253,-361.92834377,0.00020271,2]
[368697921,1751307038263,-460.0,0.00020271,2]
[368697922,1751307038272,-463.6,0.00020271,2]
[368697923,1751307038282,-460.0,0.00020271,2]
[368697924,1751307038292,-460.0,0.00020271,2]
[368697925,1751307038301,-128.66260007,0.00020271,2]
[368697926,1751307038312,-331.33739993,0.00020271,2]
[368697927,1751307038322,-460.0,0.00020271,2]
[368697928,1751307038331,-132.44946856,0.00020271,2]
[368697929,1751307038343,-327.55053144,0.00020271,2]
[368697930,1751307038352,-460.0,0.00020271,2]
[368697931,1751307038362,-308.85744514,0.00020271,2]
[368697932,1751307038371,-460.0,0.00020271,2]
[368697933,1751307038380,-460.0,0.00020271,2]
[368697934,1751307038390,-460.0,0.00020271,2]
[368697935,1751307038399,-460.0,0.00020271,2]
[368697936,1751307038408,-460.0,0.00020271,2]
[368697937,1751307038417,-460.0,0.00020289,2]
[368697938,1751307038427,-460.0,0.00020289,2]
[368697939,1751307038436,-597.04,0.00020289,2]
[368697940,1751307038445,-460.59918779,0.00020289,2]
[368697941,1751307038455,-460.0,0.00020289,2]
[368697942,1751307038465,-460.0,0.00020289,2]
[368697943,1751307038474,-477.76,0.00020289,2]
[368697944,1751307038483,-460.0,0.00020289,2]
[368697945,1751307038496,-460.0,0.00020289,2]
[368697946,1751307038505,-460.0,0.00020289,2]
[368697947,1751307038515,-460.0,0.00020289,2]
[368697948,1751307038524,-460.0,0.00020289,2]
[368697950,1751307038533,-460.0,0.00020289,2]
[368697952,1751307038543,-460.0,0.00020289,2]
[368697953,1751307038555,-460.0,0.00020289,2]
[368697954,1751307038564,-460.0,0.00020289,2]
[368697955,1751307038574,-460.0,0.00020289,2]
[368697956,1751307038583,-460.0,0.00020289,2]
[368697959,1751307038593,-460.0,0.00020289,2]
[368697961,1751307038602,-460.0,0.00020289,2]
[368697963,1751307038612,-567.23,0.00020289,2]
[368697965,1751307038621,-571.48,0.00020289,2]
[368697968,1751307038631,-460.0,0.00020289,2]
[368697969,1751307038640,-160.3295351,0.00020289,2]
[368697972,1751307038650,-487.81,0.00020289,2]
[368697975,1751307038659,-460.29517754,0.00020289,2]
[368697977,1751307038668,-408.03421053,0.00020289,2]
[368697979,1751307038678,-460.0,0.00020289,2]
[368697980,1751307038687,-179.8787289,0.00020289,2]
[368697981,1751307038697,-460.0,0.00020289,2]
[368697982,1751307038706,-460.0,0.00020289,2]
[368697983,1751307038716,-477.02,0.00020289,2]
[368697984,1751307038725,-460.0,0.00020289,2]
[368697985,1751307038734,-460.0,0.00020289,2]
[368697986,1751307038743,-460.0,0.00020289,2]
[368697987,1751307038752,-460.0,0.00020289,2]
[368697988,1751307038762,-460.0,0.00020289,2]
[368697989,1751307038771,-460.0,0.00020289,2]
[368697990,1751307038781,-460.0,0.00020289,2]
[368697991,1751307038790,-460.0,0.00020289,2]
[368697992,1751307038799,-500.0,0.00020289,2]
[368697993,1751307038808,-460.0,0.00020289,2]
[368697994,1751307038818,-460.0,0.00020289,2]
[368697995,1751307038827,-460.0,0.00020289,2]
[368697996,1751307038836,-460.0,0.00020289,2]
[368697997,1751307038845,-460.0,0.00020289,2]
[368697998,1751307038854,-606.55,0.00020289,2]
[368697999,1751307038863,-460.0,0.00020289,2]
[368698000,1751307038873,-460.0,0.00020289,2]
[368698001,1751307038882,-460.0,0.00020289,2]
[368698002,1751307038891,-460.0,0.00020289,2]
[368698003,1751307038900,-460.0,0.00020289,2]
[368698004,1751307038910,-460.0,0.00020289,2]
[368698005,1751307038920,-460.0,0.00020289,2]
[368698006,1751307038929,-460.0,0.00020289,2]
[368698007,1751307038939,-460.0,0.00020289,2]
[368698008,1751307038948,-460.0,0.00020289,2]
[368698009,1751307038958,-460.0,0.00020289,2]
[368698010,1751307038967,-460.0,0.00020289,2]
[368698011,1751307038976,-460.0,0.00020289,2]
[368698012,1751307038986,-460.0,0.00020289,2]
[368698013,1751307038995,-460.0,0.00020289,2]
[368698014,1751307039005,-460.0,0.00020289,2]
[368698015,1751307039130,-460.0,0.00020289,2]
[368698016,1751307039141,-460.8272453,0.00020289,2]
[368698017,1751307039155,-500.0,0.00020289,2]
[368698018,1751307039165,-460.0,0.00020289,2]
[368698019,1751307039174,-460.0,0.00020289,2]
[368698020,1751307039184,-460.0,0.00020289,2]
[368698021,1751307039194,-461.11597554,0.00020289,2]
[368698022,1751307039203,-460.0,0.00020289,2]
[368698023,1751307039213,-460.0,0.00020289,2]
[368698024,1751307039222,-524.17,0.00020289,2]
[368698025,1751307039232,-461.62732086,0.00020289,2]
[368698026,1751307039242,-460.0,0.00020289,2]
[368698027,1751307039253,-538.92,0.00020289,2]
[368698028,1751307039263,-460.0,0.00020289,2]
[368698029,1751307039272,-500.0,0.00020298,2]
[368698030,1751307039281,-500.0,0.00020298,2]
[368698031,1751307039290,-378.07562485,0.00020299,2]
[368698032,1751307039299,-460.4846087,0.00020299,2]
[368698033,1751307039308,-402.20912142,0.00020299,2]
[368698034,1751307039317,-297.12212073,0.00020299,2]
[368698035,1751307039326,-186.29756431,0.00020299,2]
[368698036,1751307039335,-455.88535457,0.00020299,2]
[368698037,1751307039344,-460.0,0.00020299,2]
[368698038,1751307039353,-460.0,0.00020299,2]
[368698039,1751307039362,-460.0,0.00020299,2]
[368698040,1751307039372,-460.0,0.00020299,2]
[368698041,1751307039382,-460.0,0.00020299,2]
[368698042,1751307039392,-460.0,0.00020299,2]
[368698043,1751307039401,-460.0,0.00020299,2]
[368698044,1751307039410,-460.0,0.00020299,2]
[368698045,1751307039419,-557.83159,0.00020299,2]
[368698047,1751307039429,-191.7879792,0.00020299,2]
[368698048,1751307039438,-460.0,0.00020299,2]
[368698049,1751307039448,-460.0,0.00020299,2]
[368698050,1751307039458,-500.0,0.00020299,2]
[368698051,1751307039467,-500.0,0.00020299,2]
[368698052,1751307039476,-500.0,0.00020299,2]
[368698053,1751307039486,-500.0,0.00020299,2]
[368698054,1751307039494,-342.65501239,0.00020299,2]
[368698055,1751307039507,-157.34498761,0.00020299,2]
[368698056,1751307039516,-136.65501039,0.00020299,2]
[368698057,1751307039528,-363.34498961,0.00020299,2]
[368698059,1751307039538,-500.0,0.00020299,2]
[368698061,1751307039547,-500.0,0.00020299,2]
[368698063,1751307039558,-500.0,0.00020299,2]
[368698065,1751307039568,-168.10524603,0.00020299,2]
[368698067,1751307039578,-460.0807922,0.00020299,2]
[368698069,1751307039588,-460.0,0.00020299,2]
[368698070,1751307039597,-460.0,0.00020299,2]
[368698072,1751307039607,-500.0,0.00020299,2]
[368698073,1751307039616,-500.0,0.00020299,2]
[368698074,1751307039626,-500.0,0.00020299,2]
[368698075,1751307039635,-291.86,0.00020299,2]
[368698076,1751307039644,-460.0,0.00020299,2]
[368698077,1751307039653,-461.85566721,0.00020299,2]
[368698080,1751307039663,-460.0,0.00020299,2]
[368698082,1751307039673,-503.15188793,0.00020299,2]
[368698084,1751307039683,-460.0,0.00020299,2]
[368698085,1751307039692,-460.0,0.00020299,2]
[368698087,1751307039702,-609.1,0.00020299,2]
[368698088,1751307039712,-460.0,0.00020299,2]
[368698089,1751307039721,-460.0,0.00020299,2]
[368698090,1751307039730,-460.0,0.00020299,2]
[368698091,1751307039740,-460.0,0.00020299,2]
[368698092,1751307039749,-460.0,0.00020299,2]
[368698093,1751307039759,-460.0,0.00020299,2]
[368698094,1751307039770,-460.0,0.00020299,2]
[368698095,1751307039779,-460.0,0.00020299,2]
[368698096,1751307039789,-151.68674292,0.00020299,2]
[368698097,1751307039798,-500.0,0.00020299,2]
[368698098,1751307039808,-500.0,0.00020299,2]
[368698099,1751307039817,-500.0,0.00020299,2]
[368698100,1751307039827,-500.0,0.00020299,2]
[368698101,1751307039837,-491.86,0.00020299,2]
[368698102,1751307039846,-460.0,0.00020299,2]
[368698103,1751307039855,-460.0,0.00020299,2]
[368698104,1751307039865,-460.0,0.00020299,2]
[368698105,1751307039884,-460.0,0.00020299,2]
[368698106,1751307039903,-460.0,0.00020299,2]
[368698107,1751307039919,-460.0,0.00020299,2]
[368698108,1751307039935,-460.0,0.00020299,2]
[368698109,1751307039951,-460.89346953,0.00020299,2]
[368698110,1751307039969,-460.0,0.00020299,2]
[368698111,1751307039984,-460.0,0.00020299,2]
[368698112,1751307040002,-557.84,0.00020299,2]
[368698113,1751307040017,-460.0,0.00020299,2]
[368698114,1751307040032,-460.0,0.00020299,2]
[368698115,1751307040046,-554.9,0.00020299,2]
[368698116,1751307040063,-628.96,0.00020299,2]
[368698117,1751307040078,-460.0,0.00020299,2]
[368698118,1751307040091,-460.0,0.00020299,2]
[368698119,1751307040104,-460.0,0.00020299,2]
[368698120,1751307040117,-460.0,0.00020299,2]
[368698121,1751307040134,-460.0,0.00020299,2]
[368698122,1751307040149,-460.0,0.00020299,2]
[368698123,1751307040169,-460.0,0.00020299,2]
[368698124,1751307040185,-466.33681408,0.00020299,2]
[368698125,1751307040201,-460.0,0.00020299,2]
[368698126,1751307040212,-151.0,0.000203,3]
[368698127,1751307040224,-460.0,0.00020328,2]
[368698128,1751307040242,-460.0,0.00020329,2]
[368698129,1751307040260,-460.0,0.00020329,2]
[368698132,1751307040273,-460.0,0.00020329,2]
[368698134,1751307040285,-460.0,0.00020329,2]
[368698135,1751307040301,-460.0,0.00020329,2]
[368698136,1751307040313,-645.07,0.00020329,2]
[368698137,1751307040325,-460.0,0.00020329,2]
[368698138,1751307040338,-426.54,0.00020331,2]
[368698139,1751307040352,-460.0,0.00020331,2]
[368698140,1751307040365,-592.51,0.00020331,2]
[368698141,1751307040379,-517.72,0.00020331,2]
[368698142,1751307040393,-947.77,0.00020331,2]
[368698143,1751307040407,-206.72,0.00020331,2]
[368698144,1751307040422,-460.0,0.00020331,2]
[368698145,1751307040435,-460.0,0.00020331,2]
[368698146,1751307040450,-207.32,0.00020331,2]
[368698147,1751307040464,-374.88,0.00020331,2]
[368698148,1751307040477,-460.0,0.00020331,2]
[368698149,1751307040491,-346.64,0.00020331,2]
[368698150,1751307040505,-647.6,0.00020331,2]
[368698151,1751307040519,-460.0,0.00020331,2]
[368698152,1751307040533,-847.41730813,0.00020393,2]
[368698153,1751307040546,-160.0,0.00020393,2]
[368698154,1751307040560,-155.21577796,0.00020399,2]
[368698155,1751307040574,-460.0,0.00020399,2]
[368698156,1751307040588,-460.0,0.00020399,2]
[368698157,1751307040602,-151.0,0.000204,4]
[368698158,1751307040614,-460.0,0.00020473,2]
[368698159,1751307040623,-460.0,0.00020473,2]
[368698160,1751307040633,-460.0,0.00020473,2]
[368698161,1751307040642,-460.0,0.00020473,2]
[368698162,1751307040651,-460.0,0.00020473,2]
[368698163,1751307040661,-460.0,0.00020473,2]
[368698164,1751307040671,-193.59662985,0.00020493,2]
[368698165,1751307040680,-158.475,0.00020499,2]
[368698166,1751307040690,-460.0,0.00020545,2]
[368698167,1751307040700,-614.67,0.00020545,2]
[368698168,1751307040709,-460.0,0.00020545,2]
[368698169,1751307040719,-153.76,0.00020545,2]
[368698170,1751307040728,-268.86,0.00020563,2]
[368698171,1751307040738,-460.0,0.00020563,2]
[368698172,1751307040747,-202.92,0.00020563,2]
[368698173,1751307040758,-219.61,0.00020563,2]
[368698174,1751307040768,-460.0,0.00020563,2]
[368698175,1751307040778,-460.0,0.00020563,2]
[368698176,1751307040788,-364.17,0.00020563,2]
[368698177,1751307040798,-460.0,0.00020563,2]
[368698178,1751307040809,-460.0,0.00020563,2]
[368698179,1751307040819,-460.0,0.00020563,2]
[368698180,1751307040829,-460.0,0.00020563,2]
[368698181,1751307040839,-164.08433468,0.00020563,2]
[368698182,1751307040848,-460.0,0.00020563,2]
[368698183,1751307040858,-460.0,0.00020563,2]
[368698184,1751307040868,-203.31,0.00020563,2]
[368698185,1751307040878,-205.13,0.00020563,2]
[368698186,1751307040888,-460.0,0.00020563,2]
[368698187,1751307041098,-460.0,0.00020563,2]
[368698188,1751307041122,-500.0,0.00020563,2]
[368698189,1751307041135,-460.0,0.00020563,2]
[368698190,1751307041145,-460.0,0.00020563,2]
[368698191,1751307041157,-460.0,0.00020563,2]
[368698192,1751307041167,-460.0,0.00020563,2]
[368698193,1751307041176,-460.62147498,0.00020563,2]
[368698194,1751307041186,-492.78,0.00020563,2]
[368698195,1751307041201,-504.93797022,0.00020563,2]
[368698196,1751307041210,-460.0,0.00020563,2]
[368698197,1751307041220,-460.0,0.00020563,2]
[368698198,1751307041229,-460.0,0.00020563,2]
[368698199,1751307041239,-460.0,0.00020563,2]
[368698200,1751307041248,-460.0,0.00020563,2]
[368698201,1751307041257,-509.27589449,0.00020563,2]
[368698202,1751307041267,-460.0,0.00020563,2]
[368698203,1751307041277,-460.0,0.00020563,2]
[368698204,1751307041288,-460.0,0.00020563,2]
[368698205,1751307041297,-460.0,0.00020563,2]
[368698206,1751307041306,-586.68,0.00020563,2]
[368698207,1751307041315,-460.0,0.00020563,2]
[368698208,1751307041328,-151.0,0.00020563,2]
[368698209,1751307041338,-461.34216602,0.00020563,2]
[368698210,1751307041348,-460.96887106,0.00020563,2]
[368698211,1751307041357,-462.34268705,0.00020563,2]
[368698212,1751307041367,-598.23016462,0.00020563,2]
[368698213,1751307041376,-477.28,0.00020563,2]
[368698214,1751307041385,-151.0,0.00020563,2]
[368698215,1751307041394,-151.0,0.00020563,2]
[368698216,1751307041403,-460.0,0.00020563,2]
[368698217,1751307041412,-151.0,0.00020563,2]
[368698218,1751307041423,-460.0,0.00020563,2]
[368698219,1751307041432,-460.0,0.00020573,2]
[368698220,1751307041441,-460.0,0.00020573,2]
[368698221,1751307041452,-524.52,0.00020573,2]
[368698222,1751307041461,-460.0,0.00020573,2]
[368698223,1751307041471,-151.0,0.00020573,2]
[368698224,1751307041480,-151.0,0.00020573,2]
[368698225,1751307041491,-151.0,0.00020573,2]
[368698226,1751307041500,-460.0,0.00020573,2]
[368698227,1751307041510,-460.0,0.00020573,2]
[368698228,1751307041521,-460.0,0.00020573,2]
[368698229,1751307041530,-460.0,0.00020573,2]
[368698230,1751307041539,-460.0,0.00020573,2]
[368698231,1751307041548,-460.0,0.00020573,2]
[368698232,1751307041557,-460.0,0.00020573,2]
[368698233,1751307041567,-151.0,0.00020573,2]
[368698234,1751307041578,-460.0,0.00020573,2]
[368698235,1751307041588,-460.0,0.00020573,2]
[368698236,1751307041598,-151.0,0.00020573,2]
[368698237,1751307041609,-460.0,0.00020573,2]
[368698238,1751307041618,-460.0,0.00020573,2]
[368698239,1751307041628,-460.0,0.00020573,2]
[368698240,1751307041638,-460.0,0.00020573,2]
[368698241,1751307041648,-460.0,0.00020573,2]
[368698242,1751307041657,-575.6,0.00020573,2]
[368698243,1751307041667,-460.0,0.00020573,2]
[368698244,1751307041678,-239.64445,0.00020573,2]
[368698245,1751307041688,-628.96,0.00020573,2]
[368698246,1751307041697,-460.94739813,0.00020573,2]
[368698247,1751307041706,-460.0,0.00020573,2]
[368698248,1751307041717,-460.0,0.00020573,2]
[368698249,1751307041727,-460.0,0.00020573,2]
[368698250,1751307041737,-460.56693596,0.00020573,2]
[368698251,1751307041747,-363.54,0.00020596,3]
[368698252,1751307041756,-343.88,0.00020596,3]
[368698253,1751307041770,-460.0,0.00020602,2]
[368698254,1751307041780,-460.0,0.00020603,2]
[368698255,1751307041789,-460.0,0.00020603,2]
[368698256,1751307041799,-460.0,0.00020603,2]
[368698257,1751307041809,-460.0,0.00020603,2]
[368698258,1751307041819,-460.0,0.00020603,2]
[368698259,1751307041828,-645.07,0.00020603,2]
[368698260,1751307041838,-460.0,0.00020603,2]
[368698261,1751307041848,-151.0,0.00020605,2]
[368698262,1751307041857,-151.0,0.00020605,2]
[368698263,1751307041867,-167.1373555,0.00020605,2]
[368698264,1751307041876,-592.51,0.00020605,2]
[368698265,1751307041886,-947.77,0.00020605,2]
[368698266,1751307041896,-460.0,0.00020605,2]
[368698267,1751307041906,-460.0,0.00020605,2]
[368698268,1751307041916,-460.0,0.00020605,2]
[368698269,1751307041926,-647.6,0.00020605,2]
[368698270,1751307041935,-460.0,0.00020605,2]
[368698271,1751307041945,-460.0,0.00020673,2]
[368698272,1751307041955,-1881.7,0.000207,2]
[368698273,1751307041966,-151.0,0.00020747,2]
[368698274,1751307041975,-151.0,0.00020747,2]
[368698275,1751307041986,-460.0,0.00020747,2]
[368698276,1751307041996,-460.0,0.00020747,2]
[368698277,1751307042006,-599.98,0.00020747,2]
[368698278,1751307042016,-460.0,0.00020747,2]
[368698279,1751307042026,-460.0,0.00020747,2]
[368698280,1751307042036,-460.0,0.00020747,2]
[368698281,1751307042046,-337.01,0.00020819,2]
[368698282,1751307042056,-614.67,0.00020819,2]
[368698283,1751307042065,-460.0,0.00020819,2]
[368698284,1751307042075,-390.42,0.00020837,2]
[368698285,1751307042084,-460.0,0.00020837,2]
[368698286,1751307042093,-313.06,0.00020837,2]
[368698287,1751307042102,-460.0,0.00020837,2]
[368698288,1751307042111,-460.0,0.00020837,2]
[368698289,1751307042120,-247.62,0.00020837,2]
[368698290,1751307042130,-299.54,0.00020837,2]
[368698291,1751307042139,-460.0,0.00020837,2]
[368698292,1751307042150,-153.32,0.00020837,2]
[368698293,1751307042161,-370.44,0.00020837,2]
[368698294,1751307042171,-400.5,0.00020837,2]
[368698295,1751307042180,-460.0,0.00020837,2]
[368698296,1751307042191,-258.24,0.00020837,2]
[368698297,1751307042200,-160.72,0.00020847,2]
[368698298,1751307042210,-291.6,0.00020847,2]
[368698299,1751307042219,-348.76,0.00020847,2]
[368698300,1751307042229,-333.0,0.00020847,2]
[368698301,1751307042239,-384.4,0.00020847,2]
[368698302,1751307042248,-460.0,0.00020847,2]
[368698303,1751307042258,-460.0,0.00020847,2]
[368698304,1751307042268,-258.1,0.00020847,2]
[368698305,1751307042278,-628.96,0.00020847,2]
[368698306,1751307042287,-460.0,0.00020847,2]
[368698307,1751307042297,-307.92,0.00020847,2]
[368698308,1751307042307,-324.22,0.00020869,3]
[368698309,1751307042317,-460.0,0.00020876,2]
[368698310,1751307042326,-460.0,0.00020877,2]
[368698311,1751307042336,-460.0,0.00020877,2]
[368698312,1751307042346,-177.8,0.00020877,2]
[368698313,1751307042357,-460.0,0.00020877,2]
[368698314,1751307042366,-460.0,0.00020877,2]
[368698315,1751307042376,-645.07,0.00020877,2]
[368698316,1751307042385,-460.0,0.00020877,2]
[368698317,1751307042395,-592.51,0.00020879,2]